fUST/lending_fUST_20250407
["ID","MTS","AMOUNT","RATE_DAILY","PERIOD"]
[357360282,1744018245598,-419.36665037,0.00038,3]
[357360283,1744018245608,-1368.0,0.00038,2]
[357360284,1744018245618,-151.0,0.00038,14]
[357360285,1744018245627,-383.156646,0.00038,14]
[357360286,1744018245638,-383.156646,0.00038,14]
[357360287,1744018245648,-151.0,0.00038,14]
[357360288,1744018245658,-151.0,0.00038,19]
[357360289,1744018245667,-151.0,0.00038,14]
[357360290,1744018245676,-151.0,0.00038,14]
[357360291,1744018245686,-1093.839468,0.00038,14]
[357360292,1744018245696,-250.018982,0.00038,14]
[357360293,1744018245705,-250.018982,0.00038,14]
[357360294,1744018245715,-500.0,0.00038043,7]
[357360296,1744018245726,-733.427941,0.00038066,14]
[357360298,1744018245736,-733.427941,0.00038066,14]
[357360300,1744018245745,-151.0,0.00038066,14]
[357360302,1744018245756,-157.475513,0.00038066,14]
[357360303,1744018245765,-157.47551,0.00038066,14]
[357360305,1744018245774,-151.0,0.00038066,14]
[357360307,1744018245784,-151.0,0.00038066,14]
[357360309,1744018245795,-151.0,0.00038067,14]
[357360311,1744018245804,-303.375879,0.00038067,14]
[357360313,1744018245814,-303.375879,0.00038067,14]
[357360315,1744018245824,-151.0,0.00038067,14]
[357360317,1744018245834,-151.0,0.00038067,14]
[357360319,1744018245844,-599.360078,0.00038067,14]
[357360321,1744018245853,-599.360078,0.00038067,14]
[357360323,1744018245863,-151.0,0.00038067,14]
[357360325,1744018245873,-151.0,0.00038067,14]
[357360327,1744018245883,-834.776173,0.00038067,2]
[357360329,1744018245893,-834.776173,0.00038067,2]
[357360331,1744018245902,-1940.036695,0.00038067,14]
[357360332,1744018245912,-1940.036695,0.00038067,14]
[357360333,1744018245921,-151.0,0.00038067,14]
[357360334,1744018245931,-294.339405,0.00038067,14]
[357360335,1744018245940,-500.0,0.00038073,5]
[357360336,1744018245949,-500.2402,0.00038073,5]
[357360337,1744018245958,-500.0,0.00038073,5]
[357360338,1744018245967,-500.0,0.00038073,5]
[357360340,1744018245976,-500.0,0.00038073,5]
[357360342,1744018245986,-500.0,0.00038073,5]
[357360343,1744018245995,-500.0,0.00038073,5]
[357360344,1744018246005,-500.0,0.00038073,5]
[357360345,1744018246014,-500.0,0.00038073,5]
[357360346,1744018246024,-500.0,0.00038073,5]
[357360348,1744018246035,-4269.83866958,0.00038077,7]
[357360349,1744018246045,-32772.4186025,0.00038077,7]
[357360350,1744018246055,-25837.39632554,0.00038077,7]
[357360360,1744018246963,-208.05773,0.00037664,14]
[357360361,1744018246974,-6935.02227696,0.00038077,7]
[357360362,1744018246983,-2375.2714712,0.00038077,7]
[357360363,1744018246992,-4688.44341851,0.00038077,7]
[357360364,1744018248433,-161.35769188,0.00037685,2]
[357360365,1744018248443,-234.01777134,0.00037685,2]
[357360366,1744018248453,-234.01777134,0.00037685,2]
[357360367,1744018248462,-208.05773,0.00037696,14]
[357360368,1744018248472,-234.01777134,0.00037966,2]
[357360369,1744018248482,-234.01777134,0.00037966,2]
[357360370,1744018248492,-20560.19729582,0.00038077,7]
[357360371,1744018248508,-161.35769188,0.00037966,2]
[357360372,1744018248518,-3636.14230812,0.00038077,7]
[357360379,1744018553093,152.0,0.00022,10]
[357360680,1744019432449,-500.0,0.00027397,5]
[357360681,1744019432460,-500.0,0.00027934,2]
[357360682,1744019432470,-500.0,0.00029236,2]
[357360684,1744019432480,-167.0,0.00029799,2]
[357360685,1744019432491,-152.55,0.000298,31]
[357360686,1744019432502,-152.55,0.000298,31]
[357360687,1744019432513,-152.55,0.000298,31]
[357360688,1744019432523,-152.55,0.000298,31]
[357360689,1744019432532,-152.55,0.000298,31]
[357360690,1744019432542,-152.55,0.000298,31]
[357360691,1744019432552,-301.465511,0.00032078,2]
[357360692,1744019432562,-1000.0,0.00032877,5]
[357360693,1744019432571,-1759.32517405,0.000329,10]
[357360694,1744019432584,-1759.32517387,0.00033383,11]
[357360696,1744019432594,-1759.32517387,0.00033866,11]
[357360698,1744019432604,-1759.32517387,0.00034348,11]
[357360699,1744019432614,-1759.32517387,0.00034831,12]
[357360700,1744019432627,-500.0,0.00035008,7]
[357360701,1744019432641,-500.0,0.00035029,7]
[357360702,1744019432651,-152.55,0.000353,31]
[357360703,1744019432661,-152.55,0.000353,31]
[357360704,1744019432672,-152.55,0.000353,31]
[357360705,1744019432682,-152.55,0.000353,31]
[357360706,1744019432693,-152.55,0.000353,31]
[357360707,1744019432703,-152.55,0.000353,31]
[357360708,1744019432713,-152.55,0.000353,31]
[357360709,1744019432723,-152.55,0.000353,31]
[357360710,1744019432733,-152.55,0.000353,31]
[357360711,1744019432742,-152.55,0.000353,31]
[357360712,1744019432752,-152.55,0.000353,31]
[357360713,1744019432762,-152.55,0.000353,31]
[357360714,1744019432772,-1759.32517387,0.00035314,12]
[357360715,1744019432782,-1759.32517387,0.00035797,12]
[357360717,1744019432792,-327.590085,0.0003589,2]
[357360718,1744019432802,-875.63303976,0.00036179,2]
[357360719,1744019432812,-1759.32517387,0.00036279,13]
[357360720,1744019432821,-1759.32517387,0.00036762,13]
[357360721,1744019432831,-2029.2322291,0.00036924,4]
[357360722,1744019432841,-151.0,0.0003698,14]
[357360723,1744019432851,-151.0,0.0003698,14]
[357360724,1744019432861,-151.0,0.0003698,14]
[357360725,1744019432871,-151.0,0.0003698,14]
[357360726,1744019432881,-151.0,0.00037,14]
[357360727,1744019432893,-151.0,0.00037,14]
[357360728,1744019432902,-151.0,0.00037,14]
[357360729,1744019432912,-151.0,0.00037,14]
[357360730,1744019432922,-1000.0,0.0003714,14]
[357360731,1744019432932,-1759.32517387,0.00037245,13]
[357360733,1744019432942,-399.06,0.000375,48]
[357360735,1744019432951,-151.0,0.00037562,14]
[357360737,1744019432961,-151.0,0.00037562,14]
[357360739,1744019432970,-151.0,0.00037562,14]
[357360741,1744019432980,-151.0,0.00037592,14]
[357360742,1744019432989,-151.0,0.00037592,14]
[357360743,1744019432999,-151.0,0.00037592,14]
[357360744,1744019433009,-151.0,0.00037654,14]
[357360746,1744019433019,-151.0,0.00037654,14]
[357360747,1744019433029,-151.0,0.00037654,14]
[357360748,1744019433040,-200.0,0.0003766,49]
[357360749,1744019433050,-208.05773,0.00037664,14]
[357360750,1744019433061,-151.0,0.00037664,14]
[357360752,1744019433071,-170.973438,0.00037664,14]
[357360754,1744019433082,-170.973438,0.00037664,14]
[357360755,1744019433093,-208.05773,0.00037696,14]
[357360756,1744019433103,-151.0,0.00037696,14]
[357360757,1744019433112,-151.0,0.00037696,14]
[357360758,1744019433122,-151.0,0.00037696,14]
[357360759,1744019433131,-151.0,0.00037696,14]
[357360760,1744019433146,-170.973438,0.00037696,14]
[357360761,1744019433156,-170.973438,0.00037696,14]
[357360762,1744019433167,-151.0,0.00037696,14]
[357360763,1744019433177,-151.0,0.00037696,14]
[357360765,1744019433188,-151.0,0.00037696,14]
[357360767,1744019433199,-875.6330397,0.00037709,2]
[357360768,1744019433210,-1759.32517387,0.00037728,14]
[357360769,1744019433220,-419.36665037,0.00037866,2]
[357360770,1744019433231,-160.0,0.00037866,2]
[357360771,1744019433242,-159.28579045,0.00037871,2]
[357360772,1744019433253,-500.0,0.00037935,7]
[357360773,1744019433263,-21866.1485068,0.00037946,3]
[357360774,1744019433275,-160.0,0.00037947,2]
[357360775,1744019433285,-200.0,0.00037954,2]
[357360776,1744019433295,-542.2,0.00037955,15]
[357360777,1744019433305,-500.0,0.00037955,15]
[357360778,1744019433315,-500.0,0.00037955,15]
[357360779,1744019433326,-500.0,0.00037955,15]
[357360780,1744019433336,-500.0,0.00037955,2]
[357360781,1744019433346,-500.0,0.00037955,15]
[357360782,1744019433355,-394.51804001,0.00037955,15]
[357360783,1744019433365,-500.0,0.00037955,15]
[357360784,1744019433375,-500.0,0.00037955,15]
[357360785,1744019433387,-500.0,0.00037955,2]
[357360786,1744019433397,-332.17997936,0.00037955,15]
[357360787,1744019433407,-493.49564039,0.00037955,2]
[357360788,1744019433417,-500.0,0.00037955,15]
[357360789,1744019433427,-500.0,0.00037955,2]
[357360790,1744019433436,-231.95,0.00037956,2]
[357360791,1744019433446,-231.95,0.00037956,2]
[357360792,1744019433455,-231.95,0.00037956,2]
[357360793,1744019433465,-231.95,0.00037956,2]
[357360794,1744019433475,-231.95,0.00037956,2]
[357360795,1744019433485,-231.95,0.00037956,2]
[357360796,1744019433494,-231.95,0.00037956,2]
[357360797,1744019433503,-231.95,0.00037956,2]
[357360798,1744019433513,-231.95,0.00037956,2]
[357360799,1744019433523,-231.95,0.00037956,2]
[357360800,1744019433533,-679.56509734,0.00037956,2]
[357360801,1744019433542,-160.0,0.00037957,3]
[357360802,1744019433552,-419.36665037,0.00037957,3]
[357360803,1744019433561,-87464.5940272,0.00037957,3]
[357360804,1744019433571,-12527.9349248,0.00037964,2]
[357360805,1744019433580,-202.8655243,0.00037966,15]
[357360806,1744019433590,-500.0,0.00037966,15]
[357360807,1744019433600,-171.20189219,0.00037966,15]
[357360808,1744019433614,-344.96114627,0.00037966,15]
[357360809,1744019433624,-131196.891041,0.00037967,3]
[357360810,1744019433636,-500.0,0.00037973,2]
[357360811,1744019433647,-500.0,0.00037973,5]
[357360812,1744019433657,-509.19423908,0.00037973,5]
[357360813,1744019433668,-500.0,0.00037973,5]
[357360814,1744019433679,-500.0,0.00037973,5]
[357360815,1744019433690,-505.80105704,0.00037973,5]
[357360816,1744019433700,-500.0,0.00037973,5]
[357360817,1744019433711,-500.0,0.00037973,5]
[357360818,1744019433723,-504.05374448,0.00037973,5]
[357360819,1744019433733,-210.12370975,0.00037973,5]
[357360820,1744019433743,-500.0,0.00037973,5]
[357360821,1744019433753,-500.0,0.00037973,5]
[357360822,1744019433763,-79827.26007919,0.00037977,2]
[357360823,1744019433810,-32131.90519808,0.00037977,2]
[357360824,1744019433823,-28965.1884821,0.00037977,2]
[357360825,1744019433836,-316.563934,0.00037977,2]
[357360851,1744019438411,-2769.33165684,0.00037977,2]
[357360854,1744019438535,-7652.947072,0.00037977,2]
[357360859,1744019440676,-866.61467378,0.00037977,2]
[357360860,1744019440771,-6257.73596728,0.00037977,2]
[357361103,1744019443516,-26769.8615504,0.00037977,2]
[357361121,1744019443684,-4600.36101488,0.00037977,2]
[357361123,1744019443697,-10965.64000895,0.00037977,2]
[357361390,1744019446447,-1024.95,0.00037977,2]
[357363770,1744020632526,-500.0,0.00027397,5]
[357363771,1744020632537,-166.68118168,0.000297,2]
[357363772,1744020632546,-152.59,0.000298,31]
[357363773,1744020632557,-152.59,0.000298,31]
[357363774,1744020632568,-152.59,0.000298,31]
[357363775,1744020632578,-152.59,0.000298,31]
[357363776,1744020632589,-166.68118167,0.00031239,2]
[357363778,1744020632601,-166.68118167,0.00032777,2]
[357363780,1744020632620,-1000.0,0.00032877,5]
[357363781,1744020632631,-5804.96913398,0.00033803,2]
[357363782,1744020632682,-431.68,0.00033803,2]
[357363784,1744020632694,-766.51,0.00033803,2]
[357363792,1744020638785,-5524.77579082,0.00033803,2]
[357363793,1744020638795,-400.0,0.00033804,2]
[357363794,1744020638804,-9080.7508074,0.00033805,2]
[357363795,1744020638814,-1287.58971902,0.000339,11]
[357363796,1744020638824,-1287.58971875,0.00034348,11]
[357363797,1744020638833,-9029.06690479,0.00034796,2]
[357363798,1744020638843,-1287.58971875,0.00034797,12]
[357363799,1744020638852,-1287.58971875,0.00035245,12]
[357363800,1744020638864,-152.59,0.000353,31]
[357363801,1744020638874,-152.59,0.000353,31]
[357363802,1744020638884,-152.59,0.000353,31]
[357363803,1744020638894,-152.59,0.000353,31]
[357363804,1744020638904,-152.59,0.000353,31]
[357363805,1744020638914,-152.59,0.000353,31]
[357363806,1744020638924,-152.59,0.000353,31]
[357363807,1744020638934,-152.59,0.000353,31]
[357363808,1744020638943,-160.0,0.00035447,2]
[357363809,1744020638953,-204.3952018,0.00035464,2]
[357363810,1744020638962,-9441.8708644,0.00035501,2]
[357363811,1744020638973,-1287.58971875,0.00035693,12]
[357363813,1744020638982,-311.21058,0.0003589,2]
[357363814,1744020638996,-1287.58971875,0.00036141,13]
[357363815,1744020639005,-300.0,0.0003629,2]
[357363817,1744020639014,-1287.58971875,0.0003659,13]
[357363819,1744020639023,-159.28579045,0.000369,2]
[357363821,1744020639034,-500.0,0.00036973,2]
[357363823,1744020639044,-500.0,0.00036973,5]
[357363825,1744020639054,-500.0,0.00036973,5]
[357363827,1744020639064,-500.0,0.00036973,5]
[357363829,1744020639074,-500.0,0.00036973,5]
[357363831,1744020639089,-500.0,0.00036973,5]
[357363833,1744020639104,-500.0,0.00036973,5]
[357363835,1744020639116,-374.21505688,0.00036989,15]
[357363837,1744020639126,-500.0,0.00036989,2]
[357363839,1744020639136,-165.94396004,0.00036989,2]
[357363841,1744020639145,-78718.1346243,0.0003699,3]
[357363843,1744020639155,-705.14554355,0.0003699,3]
[357363846,1744020639165,-591.47280239,0.00036999,15]
[357363848,1744020639175,-46247.40244181,0.00037,3]
[357363849,1744020639184,-52661.77080433,0.00037,2]
[357363864,1744020639310,-200.0,0.00037,120]
[357363866,1744020639320,-98803.68135677,0.00037,7]
[357363868,1744020639334,-476.23999,0.00037,7]
[357363913,1744020640849,-100720.07865323,0.00037,7]
[357363915,1744020640858,-26844.66484911,0.00037,7]
[357364012,1744020642393,-0.00046183,0.00037,7]
[357364236,1744020644741,-6425.74416069,0.000362,98]
[357364237,1744020644751,-110026.74711798,0.00037,7]
[357364238,1744020644762,-2202.48993461,0.00037,7]
[357364251,1744020646803,-275.16655845,0.00037,7]
[357364252,1744020646823,-383.66139618,0.00037,7]
[357365307,1744020758756,2361.07083832,0.00025,120]
[357366535,1744021292196,-2670.5891679,0.00046992,120]
[357366536,1744021292236,-1000.0,0.00046992,120]
[357366537,1744021292263,-1001.0,0.00046992,120]
[357366538,1744021292289,-500.0,0.00046992,120]
[357366539,1744021292316,-17500.0,0.00046992,120]
[357366540,1744021292341,-500.0,0.00046992,120]
[357366541,1744021292368,-211851.52842772,0.00046992,60]
[357366542,1744021292395,-5000.0,0.00046992,90]
[357366543,1744021292422,-1062.92,0.00046992,120]
[357366544,1744021292447,-464.1768543,0.00046992,120]
[357366545,1744021292473,-500.0,0.00046992,120]
[357366546,1744021292498,-434.75786733,0.00046992,120]
[357366547,1744021292522,-501.047619,0.00046992,120]
[357366548,1744021292548,-500.0,0.00046992,120]
[357366549,1744021292572,-500.0,0.00046992,120]
[357366550,1744021292597,-500.0,0.00046992,120]
[357366551,1744021292621,-500.0,0.00046992,120]
[357366552,1744021292647,-583.3481072,0.00046992,120]
[357366553,1744021292672,-771.0,0.00046992,120]
[357366554,1744021292698,-771.0,0.00046992,120]
[357366555,1744021292725,-771.0,0.00046992,120]
[357366556,1744021292751,-771.0,0.00046992,120]
[357366557,1744021292777,-771.0,0.00046992,120]
[357366558,1744021292804,-771.0,0.00046992,120]
[357366559,1744021292829,-771.0,0.00046992,120]
[357366560,1744021292855,-771.0,0.00046992,120]
[357366561,1744021292882,-771.0,0.00046992,120]
[357366562,1744021292908,-771.0,0.00046992,120]
[357366563,1744021292936,-771.0,0.00046992,120]
[357366564,1744021292963,-771.0,0.00046992,120]
[357366565,1744021292989,-771.0,0.00046992,120]
[357366566,1744021293015,-771.0,0.00046992,120]
[357366567,1744021293042,-771.0,0.00046992,120]
[357366568,1744021293070,-771.0,0.00046992,120]
[357366569,1744021293100,-771.0,0.00046992,120]
[357366570,1744021293129,-771.0,0.00046992,120]
[357366571,1744021293158,-771.0,0.00046992,120]
[357366572,1744021293188,-771.0,0.00046992,120]
[357366573,1744021293220,-771.0,0.00046992,120]
[357366574,1744021293250,-771.0,0.00046992,120]
[357366575,1744021293278,-771.0,0.00046992,120]
[357366576,1744021293307,-771.03498317,0.00046992,120]
[357366577,1744021293336,-500.0,0.00046992,120]
[357366578,1744021293365,-430.23434151,0.00046992,120]
[357366579,1744021293393,-500.0,0.00046992,120]
[357366580,1744021293423,-500.0,0.00046992,120]
[357366581,1744021293453,-500.0,0.00046992,120]
[357366582,1744021293483,-500.0,0.00046992,120]
[357366583,1744021293512,-500.0,0.00046992,120]
[357366584,1744021293540,-500.0,0.00046992,120]
[357366585,1744021293567,-565.21828555,0.00046992,120]
[357366586,1744021293595,-333.20483464,0.00046992,120]
[357366587,1744021293623,-500.0,0.00046992,120]
[357366588,1744021293652,-500.0,0.00046992,120]
[357366589,1744021293681,-500.0,0.00046992,120]
[357366590,1744021293710,-500.0,0.00046992,120]
[357366591,1744021293739,-500.0,0.00046992,120]
[357366592,1744021293767,-500.0,0.00046992,120]
[357366593,1744021293795,-500.0,0.00046992,120]
[357366594,1744021293821,-500.0,0.00046992,120]
[357366595,1744021293848,-500.0,0.00046992,120]
[357366596,1744021293875,-500.0,0.00046992,120]
[357366597,1744021293901,-500.0,0.00046992,120]
[357366598,1744021293930,-500.0,0.00046992,120]
[357366599,1744021293958,-500.0,0.00046992,120]
[357366600,1744021293984,-500.0,0.00046992,120]
[357366601,1744021294011,-500.0,0.00046992,120]
[357366602,1744021294038,-500.0,0.00046992,120]
[357366603,1744021294064,-500.0,0.00046992,120]
[357366604,1744021294090,-500.0,0.00046992,120]
[357366605,1744021294115,-500.0,0.00046992,120]
[357366606,1744021294141,-500.0,0.00046992,120]
[357366607,1744021294169,-500.0,0.00046992,120]
[357366608,1744021294195,-500.0,0.00046992,120]
[357366609,1744021294347,-500.0,0.00046992,120]
[357366610,1744021294375,-500.0,0.00046992,120]
[357366611,1744021294402,-500.0,0.00046992,120]
[357366612,1744021294429,-333.99251808,0.00046992,120]
[357366613,1744021294455,-500.0,0.00046992,120]
[357366614,1744021294480,-500.0,0.00046992,120]
[357366615,1744021294506,-500.0,0.00046992,120]
[357366616,1744021294530,-500.0,0.00046992,120]
[357366617,1744021294555,-500.0,0.00046992,120]
[357366618,1744021294580,-500.0,0.00046992,120]
[357366619,1744021294605,-500.0,0.00046992,120]
[357366620,1744021294631,-500.0,0.00046992,120]
[357366621,1744021294657,-500.0,0.00046992,120]
[357366622,1744021294684,-500.0,0.00046992,120]
[357366623,1744021294709,-500.0,0.00046992,120]
[357366624,1744021294734,-500.0,0.00046992,120]
[357366625,1744021294759,-500.0,0.00046992,120]
[357366626,1744021294784,-500.0,0.00046992,120]
[357366627,1744021294809,-500.0,0.00046992,120]
[357366628,1744021294834,-500.0,0.00046992,120]
[357366629,1744021294859,-500.0,0.00046992,120]
[357366630,1744021294884,-500.0,0.00046992,120]
[357366631,1744021294909,-500.0,0.00046992,120]
[357366632,1744021294937,-495.11624858,0.00046992,120]
[357366633,1744021294963,-500.0,0.00046992,120]
[357366634,1744021294989,-500.0,0.00046992,120]
[357366635,1744021295015,-500.0,0.00046992,120]
[357366636,1744021295040,-500.0,0.00046992,120]
[357366637,1744021295066,-568.40481001,0.00046992,120]
[357366638,1744021295091,-500.0,0.00046992,120]
[357366639,1744021295117,-500.0,0.00046992,120]
[357366640,1744021295145,-500.0,0.00046992,120]
[357366641,1744021295178,-500.0,0.00046992,120]
[357366642,1744021295212,-500.0,0.00046992,120]
[357366643,1744021295242,-500.0,0.00046992,120]
[357366644,1744021295270,-500.0,0.00046992,120]
[357366645,1744021295297,-297.04238865,0.00046992,120]
[357366646,1744021295323,-500.0,0.00046992,120]
[357366647,1744021295348,-500.0,0.00046992,120]
[357366648,1744021295376,-500.0,0.00046992,120]
[357366649,1744021295402,-500.0,0.00046992,120]
[357366650,1744021295430,-500.0,0.00046992,120]
[357366651,1744021295457,-500.0,0.00046992,120]
[357366652,1744021295483,-500.0,0.00046992,120]
[357366653,1744021295509,-500.0,0.00046992,120]
[357366654,1744021295534,-500.0,0.00046992,120]
[357366655,1744021295559,-500.0,0.00046992,120]
[357366656,1744021295585,-500.0,0.00046992,120]
[357366657,1744021295610,-500.0,0.00046992,120]
[357366658,1744021295635,-500.0,0.00046992,120]
[357366659,1744021295660,-500.0,0.00046992,120]
[357366660,1744021295687,-500.0,0.00046992,120]
[357366661,1744021295712,-500.0,0.00046992,120]
[357366662,1744021295737,-500.0,0.00046992,120]
[357366663,1744021295762,-500.0,0.00046992,120]
[357366664,1744021295787,-500.0,0.00046992,120]
[357366665,1744021295811,-500.0,0.00046992,120]
[357366666,1744021295835,-596.87620471,0.00046992,120]
[357366667,1744021295864,-500.0,0.00046992,120]
[357366668,1744021295889,-500.0,0.00046992,120]
[357366669,1744021295915,-500.0,0.00046992,120]
[357366670,1744021295940,-500.0,0.00046992,120]
[357366671,1744021295976,-500.0,0.00046992,120]
[357366672,1744021296004,-500.0,0.00046992,120]
[357366673,1744021296031,-500.0,0.00046992,120]
[357366674,1744021296059,-500.0,0.00046992,120]
[357366675,1744021296086,-500.0,0.00046992,120]
[357366676,1744021296113,-500.0,0.00046992,120]
[357366677,1744021296141,-500.0,0.00046992,120]
[357366678,1744021296169,-500.0,0.00046992,120]
[357366679,1744021296198,-500.0,0.00046992,120]
[357366680,1744021296230,-500.0,0.00046992,120]
[357366681,1744021296259,-500.0,0.00046992,120]
[357366682,1744021296288,-500.0,0.00046992,120]
[357366683,1744021296316,-524.17639854,0.00046992,120]
[357366684,1744021296343,-500.0,0.00046992,120]
[357366685,1744021296371,-500.0,0.00046992,120]
[357366686,1744021296401,-342.88383857,0.00046992,120]
[357366687,1744021296428,-500.0,0.00046992,120]
[357366688,1744021296456,-500.0,0.00046992,120]
[357366689,1744021296484,-500.0,0.00046992,120]
[357366690,1744021296510,-500.0,0.00046992,120]
[357366691,1744021296537,-500.0,0.00046992,120]
[357366692,1744021296563,-500.0,0.00046992,120]
[357366693,1744021296590,-500.0,0.00046992,120]
[357366694,1744021296616,-500.0,0.00046992,120]
[357366695,1744021296643,-500.0,0.00046992,120]
[357366696,1744021296671,-500.0,0.00046992,120]
[357366697,1744021296699,-500.0,0.00046992,120]
[357366698,1744021296887,-500.0,0.00046992,120]
[357366699,1744021296915,-500.0,0.00046992,120]
[357366700,1744021296946,-500.0,0.00046992,120]
[357366701,1744021296973,-500.0,0.00046992,120]
[357366702,1744021297001,-500.0,0.00046992,120]
[357366703,1744021297028,-500.0,0.00046992,120]
[357366704,1744021297055,-500.0,0.00046992,120]
[357366705,1744021297083,-500.0,0.00046992,120]
[357366706,1744021297110,-500.0,0.00046992,120]
[357366707,1744021297136,-500.0,0.00046992,120]
[357366708,1744021297162,-500.0,0.00046992,120]
[357366709,1744021297190,-500.0,0.00046992,120]
[357366710,1744021297218,-500.0,0.00046992,120]
[357366711,1744021297244,-500.0,0.00046992,120]
[357366712,1744021297270,-542.67395484,0.00046992,120]
[357366713,1744021297299,-500.0,0.00046992,120]
[357366714,1744021297331,-500.0,0.00046992,120]
[357366715,1744021297357,-500.0,0.00046992,120]
[357366716,1744021297384,-500.0,0.00046992,120]
[357366717,1744021297410,-500.0,0.00046992,120]
[357366718,1744021297442,-500.0,0.00046992,120]
[357366719,1744021297468,-500.0,0.00046992,120]
[357366720,1744021297495,-500.0,0.00046992,120]
[357366721,1744021297523,-500.0,0.00046992,120]
[357366722,1744021297550,-500.0,0.00046992,120]
[357366723,1744021297577,-500.0,0.00046992,120]
[357366724,1744021297603,-500.0,0.00046992,120]
[357366725,1744021297629,-500.0,0.00046992,120]
[357366726,1744021297655,-500.0,0.00046992,120]
[357366727,1744021297683,-500.0,0.00046992,120]
[357366728,1744021297710,-500.0,0.00046992,120]
[357366729,1744021297736,-500.0,0.00046992,120]
[357366730,1744021297763,-500.0,0.00046992,120]
[357366731,1744021297789,-500.0,0.00046992,120]
[357366732,1744021297815,-500.0,0.00046992,120]
[357366733,1744021297840,-500.0,0.00046992,120]
[357366734,1744021297866,-500.0,0.00046992,120]
[357366735,1744021297892,-500.0,0.00046992,120]
[357366736,1744021297918,-500.0,0.00046992,120]
[357366737,1744021297947,-500.0,0.00046992,120]
[357366738,1744021297972,-622.95722698,0.00046992,120]
[357366739,1744021297998,-500.0,0.00046992,120]
[357366740,1744021298025,-500.0,0.00046992,120]
[357366741,1744021298051,-500.0,0.00046992,120]
[357366742,1744021298076,-501.94479604,0.00046992,120]
[357366743,1744021298102,-468.03584477,0.00046992,120]
[357366744,1744021298127,-500.0,0.00046992,120]
[357366745,1744021298151,-500.0,0.00046992,120]
[357366746,1744021298181,-500.0,0.00046992,120]
[357366747,1744021298209,-500.0,0.00046992,120]
[357366748,1744021298235,-500.0,0.00046992,120]
[357366749,1744021298263,-500.0,0.00046992,120]
[357366750,1744021298290,-500.0,0.00046992,120]
[357366751,1744021298322,-212.36355663,0.00046992,120]
[357366752,1744021298349,-502.6390056,0.00046992,120]
[357366753,1744021298376,-500.0,0.00046992,120]
[357366754,1744021298403,-500.0,0.00046992,120]
[357366755,1744021298433,-500.0,0.00046992,120]
[357366756,1744021298459,-500.0,0.00046992,120]
[357366757,1744021298485,-500.0,0.00046992,120]
[357366758,1744021298511,-500.0,0.00046992,120]
[357366759,1744021298535,-504.10274257,0.00046992,120]
[357366760,1744021298561,-509.16294271,0.00046992,120]
[357366761,1744021298586,-500.0,0.00046992,120]
[357366762,1744021298611,-500.0,0.00046992,120]
[357366763,1744021298636,-500.0,0.00046992,120]
[357366764,1744021298662,-500.0,0.00046992,120]
[357366765,1744021298690,-500.0,0.00046992,120]
[357366766,1744021298716,-500.0,0.00046992,120]
[357366767,1744021298743,-500.0,0.00046992,120]
[357366768,1744021298769,-500.0,0.00046992,120]